bitfinex-derivatives/quotes_BTCF0:USTF0_20250429
["timestamp","ask_amount","ask_price","bid_price","bid_amount"]
[1745934541672,0.0835192,94816.0,94815.0,0.2898632]
[1745934542383,0.0855192,94816.0,94815.0,0.2898632]
[1745934543677,0.005,94816.0,94815.0,0.2898632]
[1745934546984,0.0805192,94819.0,94818.0,0.2108565]
[1745934547176,0.0394,94827.0,94826.0,0.2108387]
[1745934547480,0.0394,94827.0,94826.0,0.5716387]
[1745934548287,0.2552365,94827.0,94826.0,0.3608]
[1745934548576,0.2108543,94820.0,94819.0,0.2108442]
[1745934548970,0.2535543,94820.0,94819.0,0.2108442]
[1745934549174,0.3735543,94820.0,94819.0,0.2108442]
[1745934549777,0.1677,94820.0,94819.0,0.2108442]
[1745934549983,0.3785521,94820.0,94819.0,0.2108442]
[1745934550477,0.1677,94820.0,94819.0,0.2108442]
[1745934551075,0.0477,94820.0,94819.0,0.2108442]
[1745934551977,0.005,94820.0,94819.0,0.2108442]
[1745934552573,0.005,94820.0,94819.0,0.2946442]
[1745934559883,0.005,94820.0,94806.0,0.2108825]
[1745934559884,0.2108832,94807.0,94806.0,0.2108825]
[1745934560083,0.2108832,94807.0,94806.0,0.2526825]
[1745934560283,0.3350832,94807.0,94806.0,0.2526825]
[1745934560674,0.2108832,94806.0,94805.0,0.6445655]
[1745934561088,0.4137832,94806.0,94805.0,0.6445655]
[1745934561882,0.4137832,94806.0,94805.0,0.6455655]
[1745934562284,0.4137832,94806.0,94805.0,0.5726855]
[1745934562586,0.4137832,94806.0,94805.0,0.5736855]
[1745934563089,0.4147832,94806.0,94805.0,0.5726855]
[1745934563383,0.4137832,94806.0,94805.0,0.5726855]
[1745934563692,0.4147832,94806.0,94805.0,0.5726855]
[1745934563988,0.4147832,94806.0,94805.0,0.5716855]
[1745934564188,0.4147832,94806.0,94805.0,0.2108855]
[1745934564391,0.2108921,94802.0,94801.0,0.00802343]
[1745934564585,0.2108921,94802.0,94801.0,0.2108943]
[1745934565196,0.4125921,94802.0,94801.0,0.2108943]
[1745934566891,0.4145921,94802.0,94801.0,0.2108943]
[1745934567090,0.4165921,94802.0,94801.0,0.2108943]
[1745934567589,0.4165921,94802.0,94801.0,0.21871234]
[1745934568384,0.4145921,94802.0,94801.0,0.21871234]
[1745934568580,0.4165921,94802.0,94801.0,0.21871234]
[1745934571283,0.4165921,94802.0,94801.0,0.00781804]
[1745934571477,0.3163861,94790.0,94789.0,0.2636509]
[1745934571788,0.3163861,94790.0,94789.0,0.3049509]
[1745934571994,0.3163861,94790.0,94789.0,0.32654115]
[1745934572287,0.4363861,94790.0,94789.0,0.32654115]
[1745934572993,0.3836554,94790.0,94789.0,0.32654115]
[1745934573980,0.3856554,94790.0,94789.0,0.28176968]
[1745934576085,0.3856554,94790.0,94789.0,0.02954868]
[1745934576288,0.3856554,94790.0,94789.0,0.00795843]
[1745934576491,0.2109344,94783.0,94782.0,0.00158257]
[1745934576694,0.2109344,94783.0,94782.0,0.21251917]
[1745934577201,0.3309344,94783.0,94782.0,0.0314083]
[1745934577396,0.4125344,94783.0,94782.0,0.0314083]
[1745934577703,0.4125344,94783.0,94782.0,0.00966681]
[1745934578186,0.4125344,94783.0,94782.0,0.00158257]
[1745934579087,0.21095,94776.0,94775.0,0.00105513]
[1745934579288,0.57175,94776.0,94775.0,0.21200733]
[1745934579496,0.57175,94776.0,94775.0,0.00105513]
[1745934579794,0.57175,94776.0,94775.0,0.21200733]
[1745934579981,0.65545,94776.0,94775.0,0.21200733]
[1745934580183,0.77545,94776.0,94775.0,0.00105513]
[1745934580390,0.77545,94776.0,94775.0,0.21200733]
[1745934580692,0.77945,94776.0,94775.0,0.21200733]
[1745934581490,0.78045,94776.0,94775.0,0.21200733]
[1745934582083,0.78045,94776.0,94775.0,0.00879719]
[1745934582488,0.2109834,94762.0,94761.0,0.2109827]
[1745934582687,0.2109834,94761.0,94760.0,0.26531171]
[1745934582897,0.2934834,94761.0,94760.0,0.26531171]
[1745934583095,0.4134834,94761.0,94760.0,0.26531171]
[1745934583691,0.4134834,94761.0,94760.0,0.28646655]
[1745934584186,0.4134834,94761.0,94760.0,0.27315824]
[1745934585198,0.4134834,94761.0,94760.0,0.22041264]
[1745934591390,0.3309834,94761.0,94760.0,0.22041264]
[1745934593898,0.3734834,94761.0,94760.0,0.22041264]
[1745934595003,0.3309834,94761.0,94760.0,0.22041264]
[1745934595299,0.2109834,94761.0,94760.0,0.22041264]
[1745934595692,0.2109834,94761.0,94760.0,0.26031264]
[1745934599307,0.2109834,94761.0,94760.0,0.29871264]
[1745934601208,0.3309834,94761.0,94760.0,0.29871264]
[1745934603810,0.3309834,94761.0,94760.0,0.25881264]
[1745934605908,0.3309834,94761.0,94760.0,0.25722973]
[1745934606109,0.2109834,94761.0,94760.0,0.25722973]
[1745934606706,0.2109106,94794.0,94760.0,0.40177453]
[1745934606905,0.0015,94800.0,94791.0,0.2109166]
[1745934607106,0.4131,94846.0,94824.0,0.2108432]
[1745934607305,0.10151938,94834.0,94824.0,0.6438432]
[1745934607507,0.12486683,94825.0,94824.0,0.6731912]
[1745934607717,0.00996683,94825.0,94824.0,0.6009912]
[1745934607899,0.00996683,94825.0,94824.0,1.607948]
[1745934608098,0.00996683,94825.0,94824.0,2.2095912]
[1745934608298,0.00996683,94825.0,94824.0,2.2995912]
[1745934608817,0.00996683,94825.0,94824.0,0.7995912]
[1745934609514,0.00996683,94825.0,94824.0,0.20638226]
[1745934609810,0.2108566,94818.0,94807.0,0.1249199]
[1745934610015,0.14011938,94817.0,94813.0,0.039]
[1745934610307,0.0778,94817.0,94813.0,0.04708909]
[1745934610809,0.105468,94816.0,94793.0,0.02154806]
[1745934611013,0.51534841,94806.0,94793.0,0.07427606]
[1745934611216,0.0786,94805.0,94797.0,0.0387]
[1745934611416,0.2108954,94801.0,94798.0,0.2108989]
[1745934611605,0.0768,94800.0,94798.0,0.2108989]
[1745934611806,0.2109054,94797.0,94793.0,0.2109112]
[1745934612014,0.105484,94801.0,94793.0,0.2109112]
[1745934612015,0.4376,94796.0,94795.0,0.2109077]
[1745934612213,0.1582,94796.0,94795.0,0.5717077]
[1745934613415,0.1592,94796.0,94795.0,0.5737077]
[1745934614121,0.0392,94796.0,94795.0,0.5727077]
[1745934614612,0.001,94796.0,94795.0,0.5727077]
[1745934614807,0.0416,94804.0,94803.0,0.2108899]
[1745934615011,0.2524877,94804.0,94803.0,0.2108899]
[1745934615206,0.2524877,94804.0,94803.0,0.22674681]
[1745934615609,0.04,94805.0,94804.0,0.2108877]
[1745934615905,0.04,94805.0,94804.0,0.66504461]
[1745934616105,0.2108254,94833.0,94804.0,1.33137301]
[1745934616310,0.0416,94829.0,94828.0,0.2108343]
[1745934616613,0.2524321,94829.0,94828.0,0.22669121]
[1745934616813,0.0418,94834.0,94833.0,0.2108232]
[1745934617012,0.0015,94835.0,94834.0,0.210821]
[1745934617207,0.0015,94835.0,94834.0,0.571621]
[1745934617408,0.0526967,94851.0,94841.0,0.0527011]
[1745934617603,0.2107913,94849.0,94848.0,0.2634795]
[1745934617804,0.3608,94855.0,94854.0,0.2107765]
[1745934618315,0.3608,94855.0,94854.0,0.22663341]
[1745934618618,0.5715743,94855.0,94854.0,0.22663341]
[1745934619117,0.0526924,94857.0,94856.0,0.2107698]
[1745934619118,0.2107743,94857.0,94856.0,0.2107698]
[1745934619506,0.2498743,94857.0,94856.0,0.2893698]
[1745934619719,0.2891743,94857.0,94856.0,0.2893698]
[1745934619916,0.2891743,94857.0,94856.0,0.30522671]
[1745934620614,0.2961743,94857.0,94856.0,0.30522671]
[1745934621315,0.4015983,94857.0,94856.0,0.01585691]
[1745934621518,0.0527134,94821.0,94810.0,0.3608]
[1745934621716,0.2108565,94818.0,94817.0,0.21244079]
[1745934621918,0.2108565,94818.0,94817.0,0.00158199]
[1745934622110,0.3308565,94818.0,94817.0,0.00158199]
[1745934622311,0.3308565,94818.0,94817.0,0.21244079]
[1745934622512,0.3308565,94818.0,94817.0,0.22043637]
[1745934622812,0.3308565,94818.0,94817.0,0.22443637]
[1745934623221,0.2108565,94818.0,94817.0,0.30743637]
[1745934623407,0.2108565,94818.0,94817.0,0.05567757]
[1745934624013,0.2108565,94818.0,94817.0,0.26653637]
[1745934624413,0.2108565,94818.0,94817.0,0.05567757]
[1745934624620,0.2108565,94818.0,94817.0,0.00558199]
[1745934624917,0.3183205,94818.0,94817.0,0.00358199]
[1745934625124,0.4383205,94818.0,94817.0,0.00158199]
[1745934625315,0.4393205,94818.0,94817.0,0.00158199]
[1745934625911,0.4363205,94818.0,94817.0,0.00158199]
[1745934626120,0.4423205,94818.0,94817.0,0.00158199]
[1745934626713,0.3328565,94818.0,94817.0,0.00158199]
[1745934626913,0.3358565,94818.0,94817.0,0.00158199]
[1745934627512,0.3368565,94818.0,94817.0,0.00158199]
[1745934628112,0.3358565,94818.0,94817.0,0.00158199]
[1745934628610,0.3338565,94818.0,94817.0,0.00158199]
[1745934629022,0.3368565,94818.0,94817.0,0.00158199]
[1745934629620,0.3338565,94818.0,94817.0,0.00158199]
[1745934629828,0.3368565,94818.0,94817.0,0.00158199]
[1745934630411,0.3368565,94818.0,94817.0,0.21244079]
[1745934630718,0.3358565,94818.0,94817.0,0.21244079]
[1745934631325,0.2158565,94818.0,94817.0,0.25314079]
[1745934631824,0.2148565,94818.0,94817.0,0.25314079]
[1745934632327,0.2138565,94818.0,94817.0,0.25314079]
[1745934632916,0.2118565,94818.0,94817.0,0.25314079]
[1745934633221,0.2128565,94818.0,94817.0,0.25314079]
[1745934633811,0.2118565,94818.0,94817.0,0.25314079]
[1745934634011,0.2128565,94818.0,94817.0,0.25314079]
[1745934634222,0.2128565,94818.0,94817.0,0.26894488]
[1745934634413,0.2118565,94818.0,94817.0,0.26894488]
[1745934634922,0.2128565,94818.0,94817.0,0.26894488]
[1745934635826,0.2128565,94818.0,94817.0,0.25314079]
[1745934636819,0.002,94818.0,94817.0,0.25314079]
[1745934637014,0.001,94818.0,94817.0,0.26902241]
[1745934637215,0.0527008,94842.0,94830.0,0.2108299]
[1745934637428,0.2108122,94838.0,94830.0,0.2108299]
[1745934637722,0.2108172,94836.0,94830.0,0.22671152]
[1745934637923,0.0527044,94836.0,94830.0,0.22671152]
[1745934638124,0.6239276,94831.0,94830.0,0.42651152]
[1745934638325,0.4141,94831.0,94830.0,0.42651152]
[1745934638825,0.2118276,94831.0,94830.0,0.42651152]
[1745934639024,0.2128276,94831.0,94830.0,0.42651152]
[1745934639220,0.002,94831.0,94830.0,0.30651152]
[1745934639624,0.2128276,94831.0,94830.0,0.30651152]
[1745934639931,0.002,94831.0,94830.0,0.30651152]
[1745934640425,0.002,94831.0,94830.0,0.42651152]
[1745934640926,0.001,94831.0,94830.0,0.42651152]
[1745934641225,0.001,94831.0,94830.0,0.30651152]
[1745934641728,0.2118276,94831.0,94830.0,0.30651152]
[1745934641921,0.001,94831.0,94830.0,0.30651152]
[1745934642228,0.2118276,94831.0,94830.0,0.01588162]
[1745934642719,0.3172796,94831.0,94830.0,0.01588162]
[1745934642921,0.3975796,94831.0,94830.0,0.01588162]
[1745934643122,0.5175796,94831.0,94830.0,0.01588162]
[1745934643726,0.5175796,94831.0,94830.0,0.22671152]
[1745934643921,0.2635422,94830.0,94829.0,0.2108318]
[1745934644317,0.3452422,94830.0,94829.0,0.2108318]
[1745934645024,0.3472422,94830.0,94829.0,0.2108318]
[1745934645224,0.4672422,94830.0,94829.0,0.2108318]
[1745934645619,0.2635589,94824.0,94823.0,0.0527111]
[1745934646019,0.3421589,94824.0,94823.0,0.2635565]
[1745934646219,0.4621589,94824.0,94823.0,0.2635565]
[1745934646419,0.4621589,94824.0,94823.0,0.2108454]
[1745934646620,0.2108832,94806.0,94787.0,0.0527311]
[1745934646827,0.2109099,94794.0,94793.0,0.0407]
[1745934647016,0.2109121,94793.0,94789.0,0.0405]
[1745934647221,0.2885121,94793.0,94792.0,0.37195957]
[1745934647830,0.2885121,94793.0,94792.0,0.39571847]
[1745934648128,0.4085121,94793.0,94792.0,0.39571847]
[1745934648519,0.4105121,94793.0,94792.0,0.39571847]
[1745934649622,0.3726121,94793.0,94792.0,0.39571847]
[1745934650131,0.3746121,94793.0,94792.0,0.37983957]
[1745934650530,0.3726121,94793.0,94792.0,0.37983957]
[1745934650718,0.3746121,94793.0,94792.0,0.37983957]
[1745934650922,0.3349121,94793.0,94792.0,0.37983957]
[1745934651118,0.2149121,94793.0,94792.0,0.37983957]
[1745934651320,0.004,94793.0,94792.0,0.2187944]
[1745934651726,0.2635793,94818.0,94792.0,0.974172]
[1745934652029,0.210865,94818.0,94817.0,0.2108565]
[1745934652223,0.3608,94823.0,94808.0,0.15454841]
[1745934652526,0.2635643,94823.0,94822.0,0.2108476]
[1745934653135,0.0527125,94821.0,94817.0,0.0786]
[1745934653329,0.2108788,94808.0,94807.0,0.2500771]
[1745934653526,0.2108788,94808.0,94807.0,0.30489858]
[1745934653727,0.2108788,94808.0,94807.0,0.30489951]
[1745934653925,0.2108788,94808.0,94807.0,0.30489965]
[1745934655226,0.2108788,94808.0,94807.0,0.30489749]
[1745934655424,0.2108727,94814.0,94813.0,0.2108548]
[1745934655826,0.2108727,94814.0,94813.0,0.22647383]
[1745934656424,0.2108727,94814.0,94813.0,0.22647427]
[1745934656824,0.2108727,94814.0,94813.0,0.22647325]
[1745934657135,0.001,94814.0,94813.0,0.22647322]
[1745934657335,0.001,94814.0,94813.0,0.22662984]
[1745934657726,0.001,94814.0,94813.0,0.22662836]
[1745934658124,0.001,94814.0,94813.0,0.34662836]
[1745934658330,0.001,94814.0,94813.0,0.34649911]
[1745934658532,0.001,94814.0,94813.0,0.3318548]
[1745934658835,0.001,94814.0,94813.0,0.34749795]
[1745934659238,0.2118654,94814.0,94813.0,0.34749795]
[1745934659433,0.2108654,94814.0,94813.0,0.34749795]
[1745934659731,0.2108654,94814.0,94813.0,0.13664315]
[1745934659938,0.2108654,94814.0,94813.0,0.3328677]
[1745934660130,0.2108654,94814.0,94813.0,0.22861385]
[1745934660437,0.2108654,94814.0,94813.0,0.2118677]
[1745934660624,0.2108654,94814.0,94813.0,0.2128677]
[1745934661230,0.2118654,94814.0,94813.0,0.2108677]
[1745934662837,0.2128654,94814.0,94813.0,0.2108677]
[1745934663234,0.2118654,94814.0,94813.0,0.2108677]
[1745934663433,0.2128654,94814.0,94813.0,0.2108677]
[1745934664340,0.2118654,94814.0,94813.0,0.2108677]
[1745934664531,0.2128654,94814.0,94813.0,0.2108677]
[1745934666038,0.052709,94830.0,94828.0,0.052708]
[1745934666238,0.3608,94840.0,94834.0,0.210821]
[1745934666433,0.0527025,94839.0,94834.0,0.22670465]
[1745934666640,0.2118181,94836.0,94834.0,0.24271864]
[1745934666835,0.2123187,94835.0,94834.0,0.24271864]
[1745934667134,0.2123187,94835.0,94834.0,0.24321208]
[1745934667339,0.2123187,94835.0,94834.0,0.24300627]
[1745934667638,0.2123187,94835.0,94834.0,0.22683499]
[1745934667839,0.2133187,94835.0,94834.0,0.24300127]
[1745934668140,0.2133187,94835.0,94834.0,0.24299333]
[1745934669531,0.2143187,94835.0,94834.0,0.28139333]
[1745934671333,0.2143187,94835.0,94834.0,0.28087773]
[1745934671535,0.2143187,94835.0,94834.0,0.26486374]
[1745934672337,0.0527102,94826.0,94823.0,0.6243518]
[1745934672642,0.2635512,94826.0,94825.0,0.210841]
[1745934672844,0.210841,94826.0,94825.0,0.210841]
[1745934673035,0.210841,94826.0,94825.0,0.288041]
[1745934673232,0.210841,94826.0,94825.0,0.30410277]
[1745934673442,0.12,94922.0,94825.0,0.30410277]
[1745934673443,0.0025,94835.0,94834.0,0.210821]
[1745934673641,0.0025,94835.0,94834.0,0.22687764]
[1745934673846,0.0015,94835.0,94834.0,0.22687764]
[1745934674046,0.0015,94835.0,94834.0,0.30437764]
[1745934674342,0.2123187,94835.0,94834.0,0.05395664]
[1745934674546,0.2918187,94835.0,94834.0,0.26477764]
[1745934674746,0.2918187,94835.0,94834.0,0.248721]
[1745934674935,0.2928187,94835.0,94834.0,0.248721]
[1745934675338,0.082,94835.0,94825.0,0.0537102]
[1745934675541,0.2108387,94827.0,94826.0,0.09412925]
[1745934675844,0.2108387,94827.0,94826.0,0.10999389]
[1745934676245,0.2108387,94827.0,94826.0,0.32083259]
[1745934676444,0.2490387,94827.0,94826.0,0.32083259]
[1745934676639,0.2898387,94827.0,94826.0,0.32083259]
[1745934676943,0.2898387,94827.0,94826.0,0.32093897]
[1745934677146,0.2108268,94832.0,94831.0,0.2635296]
[1745934677344,0.2108268,94832.0,94831.0,0.35907905]
[1745934677738,0.2108268,94832.0,94831.0,0.30637265]
[1745934677938,0.2108268,94832.0,94831.0,0.32223729]
[1745934678550,0.2516268,94832.0,94831.0,0.32223729]
[1745934678736,0.2516268,94832.0,94831.0,0.07081409]
[1745934679046,0.2516268,94832.0,94831.0,0.24314169]
[1745934679249,0.3716268,94832.0,94831.0,0.24314169]
[1745934679436,0.3716268,94832.0,94831.0,0.24303415]
[1745934679940,0.3716268,94832.0,94831.0,0.28303415]
[1745934680135,0.2516268,94832.0,94831.0,0.28303415]
[1745934680335,0.2536268,94832.0,94831.0,0.28303415]
[1745934680940,0.2526268,94832.0,94831.0,0.28303415]
[1745934681141,0.3726268,94832.0,94831.0,0.28303415]
[1745934681949,0.121,94832.0,94831.0,0.28303415]
[1745934682252,0.001,94832.0,94831.0,0.76383415]
[1745934682447,0.001,94836.0,94834.0,0.210821]
[1745934682643,0.2107708,94857.0,94850.0,0.2107854]
[1745934682952,0.0764,94859.0,94850.0,0.22712731]
[1745934683249,0.0526924,94858.0,94850.0,0.22712731]
[1745934683546,0.0764,94859.0,94850.0,0.2603382]
[1745934684048,0.11110748,94851.0,94850.0,0.2603382]
[1745934684240,0.11510748,94851.0,94850.0,0.2603382]
[1745934685145,0.11510748,94851.0,94850.0,0.268329]
[1745934685542,0.3608,94860.0,94859.0,0.2107654]
[1745934685742,0.3608,94860.0,94859.0,0.22710731]
[1745934685939,0.3608,94860.0,94859.0,1.72710731]
[1745934686137,0.3608,94860.0,94859.0,1.7272391]
[1745934686447,0.3608,94860.0,94859.0,1.82240374]
[1745934686638,0.3668,94860.0,94859.0,1.82240374]
[1745934686838,0.3708,94860.0,94859.0,1.82240374]
[1745934688542,0.007,94860.0,94859.0,1.82240374]
[1745934689147,0.007,94860.0,94859.0,1.94240374]
[1745934689545,0.0015,94870.0,94865.0,0.2107521]
[1745934689754,0.0015,94870.0,94865.0,0.2272258]
[1745934690150,0.0015,94870.0,94865.0,0.24309044]
[1745934690352,0.2107489,94867.0,94865.0,0.32079044]
[1745934690652,0.2117498,94866.0,94865.0,0.01586464]
[1745934690841,0.2905498,94866.0,94865.0,0.22661674]
[1745934691044,0.4125498,94866.0,94865.0,0.22661674]
[1745934691245,0.4505498,94866.0,94865.0,0.22661674]
[1745934692341,0.4515498,94866.0,94865.0,0.22661674]
[1745934692949,0.4515498,94866.0,94865.0,0.26771674]
[1745934693146,0.2408,94866.0,94865.0,0.26771674]
[1745934693349,0.124,94866.0,94865.0,0.28419033]
[1745934694156,0.004,94866.0,94865.0,0.40419033]
[1745934694347,0.004,94866.0,94865.0,0.44549033]
[1745934694653,0.004,94866.0,94865.0,0.44548796]
[1745934695049,0.002,94866.0,94865.0,0.44548796]
[1745934695255,0.002,94866.0,94865.0,0.32548796]
[1745934695455,0.001,94866.0,94865.0,0.32548796]
[1745934695660,0.002,94866.0,94865.0,0.32548796]
[1745934697363,0.002,94866.0,94865.0,0.32537433]
[1745934701856,0.002,94866.0,94865.0,0.32548839]
[1745934702253,0.0015,94870.0,94869.0,0.2107432]
[1745934702448,0.0015,94870.0,94869.0,0.22721485]
[1745934702656,0.0413,94883.0,94882.0,0.2107143]
[1745934702962,0.0831,94883.0,94882.0,0.24305059]
[1745934703166,0.2031,94883.0,94882.0,0.24305059]
[1745934703462,0.2031,94883.0,94882.0,0.26006677]
[1745934703667,0.2031,94883.0,94882.0,0.26206677]
[1745934703868,0.4138121,94883.0,94882.0,0.26206677]
[1745934704257,0.2061,94883.0,94882.0,0.26006677]
[1745934704966,0.2061,94883.0,94882.0,0.24305059]
[1745934705172,0.4168121,94883.0,94882.0,0.24305059]
[1745934705462,0.4168121,94883.0,94882.0,0.03233629]
[1745934705651,0.4168121,94883.0,94882.0,0.01586464]
[1745934706557,0.5222041,94883.0,94882.0,0.01586464]
[1745934707164,0.210721,94879.0,94878.0,0.2107219]
[1745934707362,0.571521,94879.0,94878.0,0.2107219]
[1745934707557,0.2107254,94877.0,94876.0,0.2634074]
[1745934707958,0.0526864,94868.0,94867.0,0.2107362]
[1745934708161,0.0526864,94868.0,94867.0,0.22720907]
[1745934708361,0.2107765,94855.0,94853.0,0.0526945]
[1745934708559,0.2107765,94855.0,94840.0,0.16104517]
[1745934708560,0.2107787,94853.0,94840.0,0.16104517]
[1745934708765,0.2107787,94853.0,94845.0,0.0526989]
[1745934709064,0.2107987,94845.0,94844.0,0.2634983]
[1745934709254,0.5715987,94845.0,94844.0,0.2634983]
[1745934709458,0.0782,94845.0,94844.0,0.2634983]
[1745934709663,0.0782,94845.0,94844.0,0.27997594]
[1745934709862,0.2889965,94845.0,94844.0,0.27997594]
[1745934710055,0.2889965,94845.0,94844.0,0.2634983]
[1745934710253,0.1982,94845.0,94844.0,0.27997555]
[1745934710658,0.1603,94845.0,94844.0,0.28497555]
[1745934710858,0.12,94845.0,94844.0,0.28497555]
[1745934711058,0.12,94845.0,94844.0,0.28297555]
[1745934711262,0.2107876,94849.0,94848.0,0.2107876]
[1745934711457,0.2872876,94849.0,94848.0,0.22726485]
[1745934712063,0.4072876,94849.0,94848.0,0.22726485]
[1745934712460,0.4072876,94849.0,94848.0,0.01947725]
[1745934712667,0.4072876,94849.0,94848.0,0.23026705]
[1745934712873,0.4072876,94849.0,94848.0,0.01947725]
[1745934713259,0.4072876,94849.0,94848.0,0.02247725]
[1745934713762,0.4072876,94849.0,94848.0,0.24914311]
[1745934713962,0.4072876,94849.0,94848.0,0.24814311]
[1745934714362,0.4072876,94849.0,94848.0,0.24614311]
[1745934714572,0.4072876,94849.0,94848.0,0.24814311]
[1745934714973,0.1579,94849.0,94848.0,0.24814311]
[1745934715271,0.1579,94849.0,94848.0,0.24514311]
[1745934715467,0.1579,94849.0,94848.0,0.247142]
[1745934716173,0.3608,94856.0,94855.0,0.2107743]
[1745934716376,0.3608,94856.0,94855.0,0.22725044]
[1745934716564,0.3608,94856.0,94855.0,0.2431265]
[1745934716765,0.5715721,94856.0,94855.0,0.2431265]
[1745934717278,0.3608,94856.0,94855.0,0.2431265]
[1745934717477,0.5715721,94856.0,94855.0,0.2431265]
[1745934717665,0.5715721,94856.0,94855.0,0.0343522]
[1745934717870,0.5715721,94856.0,94855.0,0.0363522]
[1745934718270,0.7690721,94856.0,94855.0,0.2471265]
[1745934718578,0.7690721,94856.0,94855.0,0.0363522]
[1745934719272,0.7690721,94856.0,94855.0,0.24712575]
[1745934720366,0.5583,94856.0,94855.0,0.24712575]
[1745934720567,0.7690721,94856.0,94855.0,0.24712575]
[1745934720771,0.8086721,94856.0,94855.0,0.24712575]
[1745934721074,0.5583,94856.0,94855.0,0.28512575]
[1745934721277,0.7690721,94856.0,94855.0,0.32532575]
[1745934723181,0.6490721,94856.0,94855.0,0.24712575]
[1745934724082,0.7690721,94856.0,94855.0,0.24712561]
[1745934725380,0.7690721,94856.0,94855.0,0.24512561]
[1745934725581,0.7690721,94856.0,94855.0,0.24712561]
[1745934726876,0.4808,94856.0,94855.0,0.24312561]
[1745934727072,0.4808,94856.0,94855.0,0.24712561]
[1745934727279,0.4808,94856.0,94855.0,0.28532561]
[1745934727473,0.4808,94856.0,94855.0,0.32042561]
[1745934727786,0.4808,94856.0,94855.0,0.32242458]
[1745934728280,0.2107577,94863.0,94862.0,0.2107587]
[1745934728484,0.2107577,94863.0,94862.0,0.24310898]
[1745934728678,0.3003417,94865.0,94864.0,0.2107543]
[1745934728983,0.3003417,94865.0,94864.0,0.22722852]
[1745934729276,0.0526871,94867.0,94866.0,0.2634323]
[1745934729479,0.2634347,94867.0,94866.0,0.32000652]
[1745934729683,0.2107476,94867.0,94866.0,0.28319452]
[1745934730269,0.2497476,94867.0,94866.0,0.28319452]
[1745934732071,0.2107476,94867.0,94866.0,0.28319452]
[1745934732476,0.2122454,94870.0,94869.0,0.2107432]
[1745934732674,0.2122454,94870.0,94869.0,0.22721626]
[1745934732878,0.2122454,94870.0,94869.0,0.24309232]
[1745934733185,0.3322454,94870.0,94869.0,0.26072474]
[1745934733371,0.3322454,94870.0,94869.0,0.2607245]
[1745934733575,0.3322454,94870.0,94869.0,0.24309208]
[1745934734687,0.3322454,94870.0,94869.0,0.03234888]
[1745934734879,0.3322454,94870.0,94869.0,0.24309208]
[1745934735288,0.3322454,94870.0,94869.0,0.03234888]
[1745934735486,0.3322454,94870.0,94869.0,0.03234945]
[1745934735684,0.3322454,94870.0,94869.0,0.01587606]
[1745934735888,0.2107987,94844.0,94843.0,0.22024664]
[1745934736187,0.3307987,94844.0,94843.0,0.02592362]
[1745934736486,0.3307987,94844.0,94843.0,0.0180586]
[1745934736685,0.3307987,94844.0,94843.0,0.00158152]
[1745934736886,0.3710987,94844.0,94843.0,0.00158152]
[1745934737080,0.3710987,94844.0,94843.0,0.00658152]
[1745934737288,0.4082987,94844.0,94843.0,0.01158152]
[1745934737880,0.4092987,94844.0,94843.0,0.00658152]
[1745934738077,0.4092987,94844.0,94836.0,0.16104517]
[1745934738078,0.2108143,94837.0,94836.0,0.16104517]
[1745934738289,0.2108165,94836.0,94835.0,0.00105446]
[1745934738490,0.2898165,94836.0,94835.0,0.00105446]
[1745934739292,0.55486051,94836.0,94835.0,0.00105446]
[1745934739493,0.2108343,94828.0,94817.0,0.00158199]
[1745934739684,0.2108565,94818.0,94817.0,0.00158199]
[1745934739987,0.5716565,94818.0,94817.0,0.00158199]
[1745934740194,0.6916565,94818.0,94817.0,0.00158199]
[1745934740895,0.6916565,94818.0,94801.0,0.21353193]
[1745934740896,0.2108766,94809.0,94801.0,0.21353193]
[1745934741083,0.5716766,94809.0,94801.0,0.21353193]
[1745934741388,0.5716766,94809.0,94792.0,0.0406]
[1745934741389,0.2108832,94806.0,94796.0,0.1607983]
[1745934741590,0.0527201,94808.0,94796.0,0.1607983]
[1745934741591,0.2109032,94797.0,94796.0,0.1607983]
[1745934741789,0.5717032,94797.0,94796.0,0.1607983]
[1745934742186,0.6917032,94797.0,94796.0,0.1607983]
[1745934742387,0.7687032,94797.0,94796.0,0.1607983]
[1745934742587,0.7687032,94797.0,94791.0,0.00800591]
[1745934742588,0.2109144,94792.0,94791.0,0.00800591]
[1745934743193,0.2109166,94791.0,94790.0,0.21353193]
[1745934743386,0.2885166,94791.0,94790.0,0.21353193]
[1745934744087,0.4480166,94791.0,94790.0,0.21353193]
[1745934744690,0.4480166,94791.0,94790.0,0.22253193]
[1745934745291,0.4480166,94791.0,94790.0,0.22053193]
[1745934745896,0.4480166,94791.0,94790.0,0.22153193]
[1745934746290,0.4480166,94791.0,94790.0,0.008]
[1745934746593,0.4480166,94791.0,94790.0,0.004]
[1745934746795,0.4490166,94791.0,94790.0,0.004]
[1745934746997,0.2109322,94784.0,94783.0,0.2501342]
[1745934747292,0.3309322,94784.0,94783.0,0.2501342]
[1745934747493,0.3309322,94784.0,94783.0,0.0392]
[1745934747794,0.21095,94776.0,94775.0,0.00105513]
[1745934748295,0.33095,94776.0,94775.0,0.008955]
[1745934748495,0.33095,94776.0,94775.0,0.00105513]
[1745934748683,0.41055,94776.0,94775.0,0.00105513]
[1745934749089,0.41055,94776.0,94763.0,0.0527445]
[1745934749090,0.1996,94776.0,94740.0,0.20730581]
[1745934749299,0.2109745,94766.0,94765.0,0.210974]
[1745934750402,0.2109745,94766.0,94765.0,0.213974]
[1745934751002,0.2636986,94776.0,94775.0,0.21095]
[1745934751303,0.210961,94776.0,94775.0,0.21095]
[1745934752404,0.210961,94776.0,94775.0,0.25415]
[1745934752793,0.210961,94776.0,94775.0,0.25515]
[1745934753404,0.210961,94776.0,94775.0,0.0452]
[1745934753607,0.210961,94776.0,94775.0,0.2561522]
[1745934755306,0.330961,94776.0,94775.0,0.2561522]
[1745934755797,0.330961,94776.0,94775.0,0.0452]
[1745934756201,0.330961,94776.0,94775.0,0.2561522]
[1745934757603,0.12,94776.0,94775.0,0.2561522]
[1745934757807,0.33095,94776.0,94775.0,0.2561522]
[1745934758207,0.21095,94776.0,94775.0,0.2561522]
[1745934758705,0.5717455,94778.0,94777.0,0.2109478]
[1745934759903,0.5717455,94778.0,94777.0,0.2119478]
[1745934760506,0.0423,94779.0,94777.0,0.2119478]
[1745934760507,0.0423,94779.0,94778.0,0.2109455]
[1745934760813,0.2109351,94783.0,94782.0,0.2109366]
[1745934761203,0.3309351,94783.0,94782.0,0.2109366]
[1745934761998,0.12,94783.0,94782.0,0.2109366]
[1745934762203,0.2109331,94784.0,94783.0,0.2636629]
[1745934762405,0.2109331,94784.0,94783.0,0.3061629]
[1745934762710,0.2109455,94778.0,94777.0,0.002]
[1745934762914,0.2109611,94772.0,94771.0,0.2109606]
[1745934763113,0.5717611,94772.0,94771.0,0.2538606]
[1745934763306,0.6156611,94772.0,94771.0,0.2538606]